fUSD/lending_fUSD_20250302
["ID","MTS","AMOUNT","RATE_DAILY","PERIOD"]
[355092564,1740889833470,-1407.94471152,0.00031276,3]
[355092566,1740889833479,-1407.94471152,0.00031276,3]
[355092568,1740889833489,-200.0,0.00031299,2]
[355092570,1740889833499,-1667.77,0.00031299,2]
[355092572,1740889833509,-1000.0,0.000314,2]
[355092574,1740889833519,-989.78,0.00031412,2]
[355092576,1740889833530,-720.46,0.00031472,2]
[355092578,1740889833541,-185.02,0.00031554,2]
[355092580,1740889833559,-989.78,0.00031567,2]
[355092582,1740889833576,-565.9877869,0.00031626,4]
[355092584,1740889833587,-989.78,0.00031722,2]
[355092586,1740889833597,-1345.0,0.000318,2]
[355092588,1740889833607,-989.78,0.00031877,2]
[355092590,1740889833618,-10000.0,0.00032,8]
[355092592,1740889833627,-989.78,0.00032031,2]
[355092594,1740889833637,-2000.0,0.00032121,3]
[355092596,1740889833647,-3990.947,0.00032173,2]
[355092598,1740889833657,-213.2567228,0.00032176,2]
[355092600,1740889833667,-315.76631913,0.00032176,2]
[355092602,1740889833677,-150.05516096,0.00032176,2]
[355092604,1740889833687,-687.09349871,0.00032176,2]
[355092606,1740889833697,-989.78,0.00032186,2]
[355092608,1740889833708,-152.93,0.00032266,2]
[355092610,1740889833719,-152.93,0.00032266,2]
[355092612,1740889833730,-152.93,0.00032266,2]
[355092613,1740889833741,-152.93,0.00032266,2]
[355092615,1740889833751,-152.93,0.00032266,2]
[355092617,1740889833762,-152.93,0.00032266,2]
[355092619,1740889833773,-152.93,0.00032266,2]
[355092621,1740889833783,-152.93,0.00032266,2]
[355092623,1740889833793,-152.93,0.00032266,2]
[355092625,1740889833802,-152.93,0.00032266,2]
[355092627,1740889833812,-152.93,0.00032266,2]
[355092629,1740889833822,-152.93,0.00032266,2]
[355092631,1740889833832,-152.93,0.00032266,2]
[355092633,1740889833842,-152.93,0.00032266,2]
[355092635,1740889833853,-152.93,0.00032266,2]
[355092637,1740889833862,-152.93,0.00032266,2]
[355092639,1740889833872,-152.93,0.00032266,2]
[355092641,1740889833882,-1073.15517662,0.0003227,4]
[355092643,1740889833892,-310467.7822994,0.0003227,4]
[355092646,1740889833909,-764.40628107,0.0003227,4]
[355092648,1740889833925,-1255.399995,0.0003227,4]
[355092693,1740889838005,-500.0,0.00024657,2]
[355092694,1740889838016,-500.0,0.00024931,2]
[355092695,1740889838027,-287.97726725,0.00025205,2]
[355092696,1740889838036,-207049.52605948,0.0003227,4]
[355092697,1740889838048,-506.3499875,0.0003227,4]
[355092698,1740889838064,-419.30845556,0.0003227,4]
[355092699,1740889838077,-261.20498039,0.0003227,4]
[355092910,1740889840161,-895.66500001,0.0003227,4]
[355092923,1740889840281,-78235.76462437,0.0003227,4]
[355092926,1740889840294,-404.760008,0.0003227,4]
[355092944,1740889840466,-9576.19389667,0.0003227,4]
[355093192,1740889843031,-500.0,0.00024657,2]
[355093194,1740889843041,-255.2,0.00024931,2]
[355093196,1740889843054,-244.8,0.00024931,2]
[355093198,1740889843063,-1770.99991736,0.0003227,4]
[355094658,1740891032246,-450.0,0.00016389,2]
[355094659,1740891032257,-150.0,0.00016389,2]
[355094661,1740891032266,-392.44926439,0.00024557,2]
[355094663,1740891032276,-189.91716847,0.00024557,2]
[355094665,1740891032285,-179.75695925,0.00024557,2]
[355094667,1740891032295,-150.0,0.0002463,2]
[355094669,1740891032305,-500.0,0.00024657,2]
[355094671,1740891032315,-500.0,0.00024657,2]
[355094673,1740891032324,-427.96081931,0.00024931,2]
[355094678,1740891032424,-72.03918069,0.00024931,2]
[355094679,1740891032434,-500.0,0.00024931,2]
[355094680,1740891032444,-4519.08398792,0.00025105,2]
[355094681,1740891032482,-1006.1552966,0.00025105,2]
[355094682,1740891032541,-2111.43051548,0.00025105,2]
[355094683,1740891032551,-500.0,0.00025205,2]
[355094684,1740891032561,-265.45986953,0.00025205,2]
[355094685,1740891032573,-234.54013047,0.00025205,2]
[355094686,1740891032582,-484.65309876,0.00025479,2]
[355094974,1740891040365,-15.34690124,0.00025479,2]
[355094975,1740891040375,-500.0,0.00025479,2]
[355094977,1740891040385,-500.0,0.00025753,2]
[355094979,1740891040395,-500.0,0.00025753,2]
[355094981,1740891040404,-500.0,0.00026027,2]
[355094983,1740891040414,-500.0,0.00026027,2]
[355094984,1740891040423,-150.0,0.00026091,2]
[355094986,1740891040432,-2478.13731003,0.00026091,2]
[355095121,1740891041993,-1252.36768997,0.00026091,2]
[355095122,1740891042003,-500.0,0.00026301,2]
[355095124,1740891042013,-500.0,0.00026301,2]
[355095126,1740891042023,-1120.016,0.00026575,13]
[355095128,1740891042034,-500.0,0.00026575,2]
[355095130,1740891042043,-500.0,0.00026575,2]
[355095132,1740891042052,-1000.0,0.00026575,2]
[355095134,1740891042062,-813.08090555,0.00026575,2]
[355095578,1740891046901,-150.0,0.00026091,2]
[355095580,1740891046911,-186.91909445,0.00026575,2]
[355095582,1740891046922,-1000.0,0.00026575,2]
[355095584,1740891046932,-529.19563274,0.00026849,2]
[355095586,1740891046942,-1000.0,0.00026849,2]
[355095588,1740891046953,-214.19716331,0.000269,4]
[355095590,1740891046963,-402.69,0.000274,2]
[355095592,1740891046974,-191.11,0.00027444,2]
[355095594,1740891046984,-688.25,0.00027451,2]
[355095596,1740891046994,-329.33,0.00027525,30]
[355095598,1740891047004,-23.21640834,0.000289,5]
[355095601,1740891047022,-190.98075494,0.000289,5]
[355095603,1740891047032,-763.89,0.0002909,2]
[355095605,1740891047042,-150.030213,0.00029198,119]
[355095607,1740891047054,-150.030213,0.00029198,120]
[355095609,1740891047065,-529.95,0.00029209,2]
[355095611,1740891047074,-10708.44,0.00029224,2]
[355095613,1740891047084,-150.0,0.00029359,7]
[355095615,1740891047094,-1000.0,0.00029382,2]
[355095617,1740891047104,-150.030213,0.00029498,120]
[355095620,1740891047114,-150.030213,0.00029498,119]
[355095621,1740891047124,-150.030213,0.00029698,120]
[355095623,1740891047133,-688.25,0.00029715,2]
[355095625,1740891047143,-150.030213,0.00029798,120]
[355095627,1740891047154,-150.030213,0.00029898,119]
[355095629,1740891047164,-150.030213,0.00029898,120]
[355095631,1740891047174,-852.9659399,0.000299,2]
[355098342,1740891273321,250.0,0.00013,2]
[355098343,1740891274346,300.0,0.00015,2]
[355099111,1740892231734,-350.0,0.00017,2]
[355099112,1740892231745,-400.0,0.00019,2]
[355099113,1740892231755,-165.47591036,0.00021,2]
[355099114,1740892231767,-284.52408964,0.00021,2]
[355099115,1740892231777,-167.35,0.00021918,2]
[355099116,1740892231787,-250.0,0.00022463,2]
[355099117,1740892231797,-811.96,0.00025663,2]
[355099118,1740892231807,-686.65891284,0.00025663,2]
[355099119,1740892231819,-368.49929451,0.00025663,2]
[355099120,1740892231831,-1000.0,0.00025663,2]
[355099121,1740892232076,-4023.04648129,0.00025663,2]
[355099122,1740892232090,-278.62855959,0.00025663,2]
[355099123,1740892232102,-107.81606637,0.00026091,2]
[355099127,1740892237518,-158.18393363,0.00026091,2]
[355099128,1740892237528,-150.0,0.00026091,2]
[355099129,1740892237538,-150.0,0.00026091,2]
[355099130,1740892237548,-608.358,0.00026091,2]
[355099131,1740892237559,-150.0,0.00026091,2]
[355099132,1740892237569,-450.0,0.00026748,2]
[355099133,1740892237579,-150.0,0.00026748,2]
[355099134,1740892237589,-1201.0,0.000273,3]
[355099135,1740892237598,-250.0,0.00027584,2]
[355099136,1740892237608,-235.33,0.00027603,2]
[355099137,1740892237617,-362.43,0.000277,2]
[355099138,1740892237627,-235.33,0.00027748,2]
[355099139,1740892237637,-176.76,0.00027772,2]
[355099140,1740892237647,-200.0,0.00027843,2]
[355099141,1740892237656,-235.33,0.00027893,2]
[355099142,1740892237666,-811.96,0.00027927,2]
[355099143,1740892237675,-310.73,0.00027935,2]
[355099144,1740892237686,-235.33,0.00028038,2]
[355099145,1740892237695,-158.61,0.0002814,2]
[355099146,1740892237705,-235.33,0.00028184,2]
[355099147,1740892237715,-546.21,0.00028217,120]
[355099148,1740892237724,-450.0,0.00028312,2]
[355099149,1740892237734,-150.0,0.00028312,2]
[355099150,1740892237743,-235.33,0.00028329,2]
[355099151,1740892237754,-1000.0,0.00028361,2]
[355099152,1740892237764,-235.33,0.00028474,2]
[355099153,1740892237774,-180.87,0.00028489,2]
[355099154,1740892237783,-1038.26,0.0002857,2]
[355099155,1740892237793,-235.33,0.0002862,2]
[355099156,1740892237803,-199.8505652,0.00028701,2]
[355099157,1740892237815,-250.1494348,0.00028701,2]
[355099158,1740892237830,-150.0,0.00028701,2]
[355099159,1740892237839,-235.33,0.00028765,2]
[355099160,1740892237849,-203.13941852,0.000289,5]
[355099161,1740892237859,-235.33,0.0002891,2]
[355099162,1740892237868,-896.012,0.00028931,21]
[355099163,1740892237878,-6287.54577823,0.00029,2]
[355099276,1740892239688,-16010.26369667,0.00029,2]
[355099278,1740892239700,-199.36710182,0.00029,2]
[355099280,1740892239710,-296.32009629,0.00029001,2]
[355099282,1740892239722,-22.44624029,0.00029001,2]
[355099284,1740892239732,-172.62598894,0.00029022,2]
[355099286,1740892239742,-500.0,0.00029022,2]
[355099288,1740892239752,-356.32180443,0.00029022,2]
[355099290,1740892239762,-500.0,0.00029022,2]
[355099292,1740892239772,-500.0,0.00029022,2]
[355099294,1740892239782,-500.0,0.00029022,2]
[355099296,1740892239791,-500.0,0.00029022,2]
[355099298,1740892239801,-449.78938093,0.00029022,2]
[355099300,1740892239813,-50.21061907,0.00029022,2]
[355099302,1740892239823,-500.0,0.00029022,2]
[355099304,1740892239832,-183.40387084,0.00029022,2]
[355099305,1740892239841,-536.57758831,0.00029023,4]
[355099307,1740892239851,-830.86972178,0.00029023,4]
[355099310,1740892239864,-271.04643563,0.00029023,4]
[355099312,1740892239875,-1728.77262585,0.00029023,4]
[355099314,1740892239888,-493.98587737,0.00029023,4]
[355099324,1740892239975,-497391.87053943,0.00029023,4]
[355099331,1740892240034,-20149.55898614,0.00029023,4]
[355099333,1740892240047,-414.91440781,0.00029023,4]
[355099339,1740892240100,-534.776655,0.00029023,4]
[355099677,1740892243886,-155.38,0.00029022,2]
[355099679,1740892243897,-155.38,0.00029022,2]
[355099681,1740892243907,-155.38,0.00029022,2]
[355099682,1740892243916,-11.00149472,0.00029022,2]
[355099685,1740892243928,-144.37850528,0.00029022,2]
[355099686,1740892243938,-155.38,0.00029022,2]
[355099688,1740892243949,-155.38,0.00029022,2]
[355099690,1740892243959,-1935.59939012,0.00029023,4]
[355099787,1740892245117,-254.39513532,0.00029023,4]
[355099789,1740892245130,-413.82072416,0.00029023,4]
[355099819,1740892245442,-373.58590957,0.00029023,4]
[355099821,1740892245459,-608.83533071,0.00029023,4]
[355099826,1740892245500,-157015.98877253,0.00029023,4]
[355099836,1740892245616,-11836.54523868,0.00029023,4]
[355099838,1740892245626,-2683.33274761,0.00029023,2]
[355099840,1740892245639,-524.17,0.00029043,2]
[355099842,1740892245649,-235.33,0.00029055,2]
[355099844,1740892245659,-2353.2628,0.00029057,2]
[355099846,1740892245669,-203.13941831,0.0002906,5]
[355099848,1740892245678,-1853.7,0.00029091,2]
[355099849,1740892245689,-1853.7,0.00029091,2]
[355099851,1740892245699,-150.0,0.00029091,2]
[355099853,1740892245709,-150.0,0.00029091,2]
[355099855,1740892245718,-150.0,0.00029091,2]
[355099857,1740892245728,-500.0,0.00029104,2]
[355099858,1740892245737,-500.0,0.00029104,2]
[355099860,1740892245748,-586.71,0.00029104,2]
[355099862,1740892245757,-1091.23,0.00029104,2]
[355099864,1740892245767,-500.0,0.00029104,2]
[355099866,1740892245777,-500.0,0.00029104,2]
[355099868,1740892245788,-500.0,0.00029104,2]
[355099870,1740892245798,-500.0,0.00029104,2]
[355099871,1740892245808,-500.0,0.00029104,2]
[355099873,1740892245818,-150.0,0.00029123,7]
[355099875,1740892245828,-500.0,0.00029155,2]
[355099877,1740892245838,-500.0,0.00029155,2]
[355099878,1740892245847,-500.0,0.00029155,2]
[355099880,1740892245857,-500.0,0.00029155,2]
[355099882,1740892245867,-500.0,0.00029155,2]
[355099884,1740892245877,-762.13,0.00029155,2]
[355099886,1740892245886,-493.12037477,0.00029155,2]
[355099888,1740892245896,-500.0,0.00029155,2]
[355099890,1740892245906,-500.0,0.00029155,2]
[355099891,1740892245917,-500.0,0.00029156,2]
[355099893,1740892245927,-500.0,0.00029156,2]
[355099895,1740892245937,-500.0,0.00029156,2]
[355099897,1740892245948,-500.0,0.00029156,2]
[355099899,1740892245958,-500.0,0.00029156,2]
[355099901,1740892245968,-500.0,0.00029156,2]
[355099903,1740892245978,-639.93238988,0.00029156,2]
[355099905,1740892245987,-503.1494715,0.00029156,2]
[355099907,1740892245999,-502.05354903,0.00029156,2]
[355099909,1740892246009,-296.44124529,0.00029156,2]
[355099911,1740892246019,-4360.68,0.00029157,2]
[355099913,1740892246029,-235.33,0.00029201,2]
[355099915,1740892246039,-23900.0,0.00029205,2]
[355099918,1740892246056,-203.13941831,0.0002922,5]
[355099920,1740892246066,-1090.94042558,0.00029302,2]
[355099921,1740892246076,-2683.33274755,0.00029333,2]
[355099923,1740892246086,-235.33,0.00029346,2]
[355099926,1740892246097,-500.0,0.00029378,2]
[355099927,1740892246107,-500.0,0.00029378,2]
[355099929,1740892246119,-586.71,0.00029378,2]
[355099931,1740892246129,-1091.23,0.00029378,2]
[355099933,1740892246139,-500.0,0.00029378,2]
[355099935,1740892246148,-500.0,0.00029378,2]
[355099937,1740892246159,-619.69738255,0.00029378,2]
[355099939,1740892246169,-500.0,0.00029378,2]
[355099941,1740892246179,-593.11736686,0.00029378,2]
[355099943,1740892246190,-203.13941831,0.0002938,5]
[355099944,1740892246200,-500.0,0.00029429,2]
[355099945,1740892246210,-500.0,0.00029429,2]
[355099946,1740892246220,-508.43161377,0.00029429,2]
[355099947,1740892246231,-281.48,0.00029429,2]
[355099948,1740892246240,-762.13,0.00029429,2]
[355099949,1740892246251,-500.0,0.00029429,2]
[355099950,1740892246262,-500.0,0.00029429,2]
[355099951,1740892246271,-214.78236937,0.0002943,2]
[355099952,1740892246282,-500.0,0.0002943,2]
[355099953,1740892246292,-500.0,0.0002943,2]
[355099954,1740892246302,-502.32439232,0.0002943,2]
[355099955,1740892246312,-500.0,0.0002943,2]
[355099956,1740892246322,-500.0,0.0002943,2]
[355099957,1740892246333,-235.33,0.00029491,2]
[355099958,1740892246343,-203.13941831,0.0002954,5]
[355099959,1740892246352,-235.33,0.00029637,2]
[355099960,1740892246362,-2683.33274755,0.00029644,2]
[355099961,1740892246372,-500.0,0.00029652,2]
[355099962,1740892246382,-500.0,0.00029652,2]
[355099963,1740892246392,-586.71,0.00029652,2]
[355099964,1740892246402,-1091.23,0.00029652,2]
[355099965,1740892246412,-541.97801454,0.00029652,2]
[355099966,1740892246422,-500.0,0.00029652,2]
[355099967,1740892246432,-500.0,0.00029652,2]
[355099968,1740892246442,-203.13941831,0.000297,5]
[355099969,1740892246452,-500.0,0.00029703,2]
[355099970,1740892246462,-500.0,0.00029703,2]
[355099971,1740892246471,-762.13,0.00029703,2]
[355099972,1740892246481,-500.0,0.00029703,2]
[355099973,1740892246491,-500.0,0.00029703,2]
[355099974,1740892246501,-519.46050784,0.00029704,2]
[355099975,1740892246511,-507.47444193,0.00029704,2]
[355099976,1740892246520,-500.0,0.00029704,2]
[355099977,1740892246530,-235.33,0.00029782,2]
[355099978,1740892246540,-203.13941831,0.0002986,5]
[355099979,1740892246550,-1552.0544,0.00029889,2]
[355099980,1740892246560,-784.2843,0.000299,2]
[355099981,1740892246570,-163.28750531,0.000299,2]
[355099983,1740892246579,-157.0701458,0.000299,2]
[355099985,1740892246589,-1358.96895589,0.000299,2]
[355099986,1740892246599,-4000.0,0.000299,2]
[355099988,1740892246609,-281.63232084,0.000299,2]
[355100006,1740892246769,-500.0,0.00029926,2]
[355100008,1740892246780,-500.0,0.00029926,2]
[355100010,1740892246789,-586.71,0.00029926,2]
[355100012,1740892246800,-1091.23,0.00029926,2]
[355100014,1740892246811,-500.0,0.00029926,2]
[355100016,1740892246821,-206.98524743,0.00029926,2]
[355100018,1740892246832,-235.33,0.00029927,2]
[355100020,1740892246841,-2683.33274755,0.00029954,2]
[355100022,1740892246852,-500.31056792,0.00029973,5]
[355100024,1740892246862,-500.0,0.00029977,2]
[355100026,1740892246871,-500.0,0.00029977,2]
[355100028,1740892246881,-762.13,0.00029977,2]
[355100030,1740892246890,-500.0,0.00029977,2]
[355100032,1740892246900,-249.83533058,0.00029977,2]
[355100034,1740892246910,-1020.93065425,0.0002998,2]
[355100036,1740892246920,-501.79204661,0.00029999,2]
[355100038,1740892246930,-501.57129364,0.00029999,2]
[355100039,1740892246939,-235.34438583,0.00029999,2]
[355100041,1740892246949,-500.0,0.00029999,2]
[355100043,1740892246960,-500.0,0.00029999,2]
[355100045,1740892246971,-1408.25,0.00029999,2]
[355100047,1740892246981,-155.38,0.00029999,2]
[355100049,1740892246991,-155.38,0.00029999,2]
[355100051,1740892247001,-15925.63497954,0.0003,2]
[355100054,1740892247015,-79906.93008536,0.0003,2]
[355100056,1740892247028,-770.45616505,0.0003,2]
[355100058,1740892247040,-18417.2349972,0.0003,2]
[355100061,1740892247054,-5166.15990242,0.0003,2]
[355101630,1740893079938,250.0,0.00013,2]
[355101631,1740893109091,800.0,0.00015,2]
[355101632,1740893109121,800.0,0.00015,2]
[355101633,1740893109151,800.0,0.00015,2]
[355101634,1740893109181,800.0,0.00015,2]
[355101635,1740893109210,800.0,0.00015,2]
[355101636,1740893109239,800.0,0.00015,2]
[355101637,1740893109267,800.0,0.00015,2]
[355101638,1740893109294,800.0,0.00015,2]
[355101639,1740893109323,800.0,0.00015,2]
[355101640,1740893109352,800.0,0.00015,2]
[355101641,1740893109387,800.0,0.00015,2]
[355101642,1740893109417,800.0,0.00015,2]
[355101643,1740893109445,800.0,0.00015,2]
[355101644,1740893109474,800.0,0.00015,2]
[355101645,1740893109504,800.0,0.00015,2]
[355101646,1740893109532,800.0,0.00015,2]
[355101647,1740893109562,800.0,0.00015,2]
[355101648,1740893109590,800.0,0.00015,2]
[355101649,1740893109620,800.0,0.00015,2]
[355101650,1740893109648,800.0,0.00015,2]
[355101651,1740893109678,550.0,0.00015,2]
[355101652,1740893109711,10000.0,0.00015,2]
[355101653,1740893109739,10000.0,0.00015,2]
[355101654,1740893109768,10000.0,0.00015,2]
[355101745,1740893431891,-300.0,0.00014999,2]
[355101746,1740893431901,-1622.61412759,0.00015,2]
[355101756,1740893437854,-18110.66229985,0.00015,2]
[355101757,1740893437917,-1156.3,0.00015,2]
[355101887,1740893439757,-2716.68616167,0.00015,2]
[355101890,1740893439770,-2012.55006189,0.00015,2]
[355101892,1740893439780,-1006.26446423,0.00015,2]
[355101920,1740893440061,-307.693227,0.00015,2]
[355102317,1740893444131,-632.58679888,0.00015,2]
[355102482,1740893445801,-1065.83165509,0.00015,2]
[355102488,1740893445851,-12943.5813365,0.00015,2]
[355103008,1740893535527,-300.0,0.00014999,2]
[355103009,1740893535553,-500.0,0.00015,2]
[355103010,1740893536894,-800.0,0.00015,2]
[355103011,1740893538547,-800.0,0.00015,2]
[355103012,1740893540036,-800.0,0.00015,2]
[355103013,1740893541878,-800.0,0.00015,2]
[355103014,1740893549616,-800.0,0.00015,2]
[355103020,1740893627847,30000.0,0.000152,3]
[355103021,1740893665670,-157.0,0.00014989,2]
[355103022,1740893665692,-4638.03,0.0001499,2]
[355103075,1740894631920,-818.33516132,0.0001499,2]
[355103076,1740894631932,-353.72227779,0.00014999,2]
[355103077,1740894631941,-188.95273831,0.00014999,2]
[355103078,1740894631951,-300.0,0.00014999,2]
[355103079,1740894631961,-18439.26802922,0.00015,2]
[355103080,1740894632230,-1100.0,0.00015,2]
[355103081,1740894632264,-67975.61990757,0.00015,2]
[355103120,1740894637988,-41882.39462471,0.00015,2]
[355103121,1740894637998,-4000.0,0.00015,2]
[355103122,1740894638020,-30000.0,0.000151,2]
[355103123,1740894638031,-1638.22832051,0.00016366,2]
[355103124,1740894638041,-150.0,0.00016466,2]
[355103125,1740894638051,-150.0,0.00016489,2]
[355103126,1740894638063,-450.0,0.00016489,2]
[355103127,1740894638073,-150.11443472,0.0001655,2]
[355103128,1740894638083,-1638.22832042,0.0001787,2]
[355103129,1740894638093,-292.22064365,0.000181,2]
[355103130,1740894638103,-292.22064352,0.000181,2]
[355103131,1740894638113,-292.22064352,0.000181,2]
[355103132,1740894638124,-292.22064352,0.000181,2]
[355103133,1740894638133,-292.22064352,0.00018245,2]
[355103134,1740894638143,-220.44,0.000186,2]
[355103135,1740894638153,-292.22064352,0.00018831,2]
[355103136,1740894638163,-5323.93,0.000193,2]
[355103137,1740894638174,-1638.22832042,0.00019374,2]
[355103139,1740894638183,-292.22064352,0.00019417,2]
[355103140,1740894638193,-352.7470356,0.00019807,2]
[355103141,1740894638203,-4000.0,0.0002,2]
[355103142,1740894638212,-292.22064352,0.00020003,2]
[355103143,1740894638222,-292.22064352,0.0002059,2]
[355103145,1740894638232,-810.62,0.00020794,2]
[355103147,1740894638242,-1638.22832042,0.00020877,2]
[355103149,1740894638252,-500.0,0.00020932,2]
[355103151,1740894638261,-292.22064352,0.00021176,2]
[355103153,1740894638271,-292.22064352,0.00021762,3]
[355103155,1740894638281,-167.35,0.00021918,2]
[355103158,1740894638290,-292.22064352,0.00022348,3]
[355103161,1740894638300,-1638.22832042,0.00022381,2]
[355103164,1740894638310,-740.71,0.00022527,2]
[355103166,1740894638320,-23900.0,0.00022601,2]
[355103169,1740894638329,-1000.0,0.0002263,2]
[355103172,1740894638339,-250.0,0.0002263,2]
[355103175,1740894638350,-1926.28784447,0.00022826,2]
[355103180,1740894638369,-824.71215553,0.00022826,2]
[355103183,1740894638379,-436.96,0.00022899,2]
[355103185,1740894638389,-292.22064352,0.00022934,3]
[355103187,1740894638399,-810.62,0.00023057,2]
[355103189,1740894638409,-157.23,0.00023167,2]
[355103191,1740894638419,-1198.89,0.00023224,2]
[355103193,1740894638430,-157.23,0.00023424,2]
[355103195,1740894638440,-292.22064352,0.00023521,3]
[355103197,1740894638450,-157.23,0.00023681,2]
[355103199,1740894638461,-200.0,0.00023706,2]
[355103201,1740894638470,-1638.22832042,0.00023885,2]
[355103203,1740894638481,-158.61,0.00023928,2]
[355103205,1740894638491,-157.23,0.00023939,2]
[355103207,1740894638501,-292.22064352,0.00024107,3]
[355103209,1740894638511,-157.23,0.00024196,2]
[355103212,1740894638526,-157.23,0.00024454,2]
[355103214,1740894638536,-292.22064352,0.00024693,3]
[355103216,1740894638546,-157.23,0.00024711,2]
[355103218,1740894638556,-301.88,0.00024712,30]
[355103220,1740894638566,-157.23,0.00024968,2]
[355103222,1740894638576,-4000.0,0.00025,2]
[355103224,1740894638588,-157.23,0.00025226,2]
[355103226,1740894638598,-292.22064352,0.00025279,4]
[355103228,1740894638607,-810.62,0.00025321,2]
[355103230,1740894638617,-500.0,0.00025342,2]
[355103232,1740894638627,-1638.22832042,0.00025389,2]
[355103234,1740894638636,-1000.0,0.00025459,2]
[355103236,1740894638646,-157.23,0.00025483,2]
[355103238,1740894638656,-436.96,0.00025761,120]
[355103240,1740894638666,-150.0,0.00025804,7]
[355103242,1740894638675,-292.22064352,0.00025866,4]
[355103244,1740894638685,-292.22064352,0.00026452,4]
[355103246,1740894638694,-716.81,0.0002646,13]
[355103248,1740894638704,-500.0,0.00026635,2]
[355103250,1740894638714,-152.291,0.00026636,2]
[355103252,1740894638723,-816.259,0.00026636,2]
[355103254,1740894638733,-151.482,0.00026636,2]
[355103256,1740894638743,-550.29,0.00026636,2]
[355103258,1740894638753,-912.618,0.00026636,2]
[355103260,1740894638763,-896.0,0.00026636,2]
[355103262,1740894638772,-540.435,0.00026636,2]
[355103264,1740894638782,-1424.0,0.00026636,2]
[355103266,1740894638792,-1235.20710494,0.00026636,2]
[355103389,1740894640060,-0.0193083,0.00023,2]
[355103395,1740894640108,-151.9806917,0.00023,2]
[355103397,1740894640118,-34.72489506,0.00026636,2]
[355103399,1740894640129,-4033.0,0.00026636,2]
[355103401,1740894640139,-3919.0,0.00026636,2]
[355103403,1740894640149,-150.0,0.00026636,2]
[355103406,1740894640160,-1111.0,0.00026636,2]
[355103408,1740894640170,-250.8446,0.00026799,2]
[355103410,1740894640180,-318.76633657,0.000268,2]
[355103412,1740894640190,-370.01418065,0.00026819,2]
[355103414,1740894640200,-500.0,0.00026873,2]
[355103416,1740894640210,-500.0,0.00026873,2]
[355103418,1740894640219,-1638.22832042,0.00026892,2]
[355103420,1740894640229,-500.0,0.00026898,2]
[355103422,1740894640240,-500.0,0.00026899,2]
[355103424,1740894640254,-500.0,0.00026899,2]
[355103427,1740894640264,-199.4252631,0.00026899,2]
[355103429,1740894640274,-500.0,0.00026899,2]
[355103431,1740894640284,-500.0,0.00026899,2]
[355103433,1740894640294,-500.0,0.00026899,2]
[355103435,1740894640303,-500.0,0.00026899,2]
[355103437,1740894640313,-500.0,0.00026899,2]
[355103439,1740894640324,-500.0,0.00026899,2]
[355103441,1740894640334,-510.73156515,0.00026899,7]
[355103443,1740894640344,-500.0,0.00026899,2]
[355103445,1740894640354,-509.2083343,0.00026899,2]
[355103447,1740894640364,-500.0,0.00026899,2]
[355103449,1740894640374,-401.94,0.00026899,2]
[355103451,1740894640384,-500.0,0.00026899,2]
[355103453,1740894640394,-500.0,0.00026899,2]
[355103455,1740894640403,-500.0,0.00026899,2]
[355103457,1740894640413,-360.79870592,0.00026899,2]
[355103734,1740894643021,-139.20129408,0.00026899,2]